fUSD/lending_fUSD_20250511
["ID","MTS","AMOUNT","RATE_DAILY","PERIOD"]
[360708643,1746946231815,-371.2,0.0001886,2]
[360708645,1746946231825,-45.26,0.00018876,2]
[360708647,1746946231835,-80.05307989,0.000189,6]
[360708723,1746946237730,-119.94692011,0.000189,6]
[360708724,1746946237740,-150.0,0.00018986,7]
[360708725,1746946237752,-1200.0,0.00018999,2]
[360708726,1746946237762,-77646.0,0.00019,7]
[360708727,1746946237773,-2147.0,0.00019,2]
[360708728,1746946237783,-500.0,0.00019,6]
[360708729,1746946237792,-575.19236874,0.00019,2]
[360708730,1746946237802,-575.19236855,0.00019,2]
[360708731,1746946237812,-575.19236855,0.00019,2]
[360708732,1746946237822,-575.19236855,0.00019003,2]
[360708733,1746946237831,-575.19236855,0.00019038,2]
[360708734,1746946237841,-575.19236855,0.00019072,2]
[360708735,1746946237851,-270.5062,0.00019076,2]
[360708736,1746946237860,-240.98,0.00019076,2]
[360708737,1746946237871,-800.0,0.000191,6]
[360708738,1746946237881,-575.19236855,0.00019107,2]
[360708739,1746946237890,-575.19236855,0.00019141,2]
[360708740,1746946237899,-207.4,0.00019166,2]
[360708742,1746946237909,-575.19236855,0.00019176,2]
[360708744,1746946237919,-158.26,0.00019178,2]
[360708746,1746946237929,-324.94,0.00019178,2]
[360708748,1746946237938,-358.43,0.00019178,2]
[360708750,1746946237947,-452.28,0.00019178,2]
[360708752,1746946237957,-1148.63874477,0.00019196,2]
[360708754,1746946237967,-1100.0,0.000192,7]
[360708756,1746946237976,-575.19236855,0.0001921,2]
[360708758,1746946237985,-575.19236855,0.00019245,2]
[360708760,1746946237994,-575.19236855,0.00019279,2]
[360708761,1746946238004,-1400.0,0.000193,7]
[360708762,1746946238013,-575.19236855,0.00019314,2]
[360708764,1746946238022,-575.19236855,0.00019348,2]
[360708765,1746946238031,-575.19236855,0.00019383,2]
[360708767,1746946238042,-200.0,0.000194,7]
[360708768,1746946238051,-575.19236855,0.00019417,2]
[360708769,1746946238061,-575.19236855,0.00019452,2]
[360708770,1746946238075,-575.19236855,0.00019486,2]
[360708771,1746946238084,-1000.0,0.000195,2]
[360708772,1746946238096,-200.0,0.000195,7]
[360708773,1746946238105,-245.0,0.0001951,2]
[360708774,1746946238114,-575.19236855,0.00019521,2]
[360708775,1746946238124,-575.19236855,0.00019555,2]
[360708776,1746946238134,-575.19236855,0.0001959,2]
[360708777,1746946238143,-4752.48849993,0.00019598,2]
[360708778,1746946238153,-1000.0,0.00019598,2]
[360708779,1746946238163,-2500.0,0.00019598,2]
[360708780,1746946238173,-200.0,0.000196,7]
[360708781,1746946238182,-1000.0,0.000196,2]
[360708782,1746946238192,-575.19236855,0.00019624,2]
[360708783,1746946238202,-4752.48849991,0.00019632,2]
[360708784,1746946238212,-575.19236855,0.00019659,2]
[360708785,1746946238222,-4752.48849991,0.00019665,2]
[360708788,1746946238232,-500.0,0.00019673,2]
[360708789,1746946238241,-245.0,0.0001968,2]
[360708792,1746946238251,-668.65185757,0.00019686,2]
[360708794,1746946238260,-203.15,0.00019689,2]
[360708796,1746946238270,-575.19236855,0.00019693,2]
[360708797,1746946238279,-97209.54027549,0.00019698,2]
[360708800,1746946238289,-169.5712259,0.00019698,2]
[360708802,1746946238298,-400.0,0.00019698,2]
[360708805,1746946238307,-400.0,0.00019698,2]
[360708808,1746946238316,-400.0,0.00019698,2]
[360708810,1746946238326,-400.0,0.00019698,2]
[360708812,1746946238335,-4752.48849991,0.00019699,2]
[360708813,1746946238345,-400.0,0.00019699,2]
[360708814,1746946238354,-250.0,0.00019699,2]
[360708815,1746946238363,-520.0,0.00019699,2]
[360708816,1746946238372,-400.0,0.00019699,2]
[360708817,1746946238382,-496.86016874,0.00019699,2]
[360708818,1746946238391,-400.0,0.00019699,2]
[360708819,1746946238401,-400.0,0.00019699,2]
[360708820,1746946238410,-400.0,0.00019699,2]
[360708821,1746946238420,-400.0,0.00019699,2]
[360708822,1746946238429,-400.0,0.00019699,2]
[360708823,1746946238649,-400.0,0.00019699,2]
[360708824,1746946238659,-400.0,0.00019699,2]
[360708825,1746946238669,-400.0,0.00019699,2]
[360708826,1746946238679,-400.0,0.00019699,2]
[360708827,1746946238688,-400.0,0.00019699,2]
[360708828,1746946238698,-400.0,0.00019699,2]
[360708829,1746946238708,-400.0,0.00019699,2]
[360708830,1746946238717,-400.0,0.00019699,2]
[360708831,1746946238727,-400.0,0.00019699,2]
[360708832,1746946238736,-400.0,0.00019699,2]
[360708833,1746946238746,-400.0,0.00019699,2]
[360708834,1746946238756,-301.89195203,0.00019699,2]
[360708835,1746946238766,-400.0,0.00019699,2]
[360708836,1746946238775,-400.0,0.00019699,2]
[360708837,1746946238785,-400.0,0.00019699,2]
[360708838,1746946238795,-400.0,0.00019699,2]
[360708839,1746946238804,-400.0,0.00019699,2]
[360708840,1746946238814,-400.0,0.00019699,2]
[360708841,1746946238824,-400.0,0.00019699,2]
[360708842,1746946238833,-400.0,0.00019699,2]
[360708843,1746946238843,-400.0,0.00019699,2]
[360708844,1746946238853,-941.73143009,0.00019699,2]
[360708845,1746946238862,-400.0,0.00019699,2]
[360708846,1746946238872,-400.0,0.00019699,2]
[360708847,1746946238881,-400.0,0.00019699,2]
[360708848,1746946238891,-525.44841606,0.00019699,2]
[360708849,1746946238901,-400.0,0.00019699,2]
[360708850,1746946238911,-400.0,0.00019699,2]
[360708851,1746946238920,-400.0,0.00019699,2]
[360708852,1746946238929,-400.0,0.00019699,2]
[360708853,1746946238939,-400.0,0.00019699,2]
[360708854,1746946238948,-400.0,0.00019699,2]
[360708855,1746946238957,-400.0,0.00019699,2]
[360708856,1746946238966,-400.0,0.00019699,2]
[360708857,1746946238976,-400.0,0.00019699,2]
[360708858,1746946238985,-400.0,0.00019699,2]
[360708859,1746946238994,-400.0,0.00019699,2]
[360708860,1746946239004,-400.0,0.00019699,2]
[360708861,1746946239014,-400.0,0.00019699,2]
[360708862,1746946239024,-400.0,0.00019699,2]
[360708863,1746946239034,-400.0,0.00019699,2]
[360708864,1746946239044,-400.0,0.00019699,2]
[360708865,1746946239053,-400.0,0.00019699,2]
[360708866,1746946239063,-400.0,0.00019699,2]
[360708867,1746946239072,-400.0,0.00019699,2]
[360708868,1746946239084,-400.0,0.00019699,2]
[360708869,1746946239096,-400.0,0.00019699,2]
[360708870,1746946239105,-400.0,0.00019699,2]
[360708871,1746946239115,-400.0,0.00019699,2]
[360708872,1746946239125,-400.0,0.00019699,2]
[360708873,1746946239135,-400.0,0.00019699,2]
[360708874,1746946239145,-500.0,0.00019699,2]
[360708875,1746946239154,-400.0,0.00019699,2]
[360708876,1746946239166,-400.0,0.00019699,2]
[360708877,1746946239176,-400.0,0.00019699,2]
[360708878,1746946239185,-450.0,0.00019699,2]
[360708879,1746946239195,-400.0,0.00019699,2]
[360708880,1746946239204,-354.84466834,0.00019699,2]
[360708881,1746946239213,-400.0,0.00019699,2]
[360708882,1746946239223,-432.68681086,0.00019699,2]
[360708883,1746946239232,-212.84960618,0.00019699,2]
[360708884,1746946239242,-400.0,0.00019699,2]
[360708885,1746946239252,-444.33,0.00019699,2]
[360708886,1746946239261,-400.0,0.00019699,2]
[360708887,1746946239271,-400.0,0.00019699,2]
[360708889,1746946239281,-400.0,0.00019699,2]
[360708891,1746946239294,-644.09,0.00019699,2]
[360708893,1746946239304,-400.0,0.00019699,2]
[360708894,1746946239314,-400.0,0.00019699,2]
[360708895,1746946239323,-400.0,0.00019699,2]
[360708896,1746946239333,-400.0,0.00019699,2]
[360708897,1746946239343,-400.0,0.00019699,2]
[360708898,1746946239354,-400.0,0.00019699,2]
[360708899,1746946239364,-400.0,0.00019699,2]
[360708900,1746946239375,-526.10222655,0.00019699,2]
[360708901,1746946239385,-400.0,0.00019699,2]
[360708902,1746946239396,-173.70229861,0.00019699,2]
[360708903,1746946239407,-400.0,0.00019699,2]
[360708904,1746946239417,-400.0,0.00019699,2]
[360708905,1746946239427,-400.0,0.00019699,2]
[360708906,1746946239437,-506.62,0.00019699,2]
[360708907,1746946239447,-400.0,0.00019699,2]
[360708908,1746946239456,-400.0,0.00019699,2]
[360708909,1746946239466,-682.59,0.00019699,2]
[360708910,1746946239476,-179.65934169,0.00019699,2]
[360708911,1746946239485,-400.0,0.00019699,2]
[360708912,1746946239494,-400.0,0.00019699,2]
[360708913,1746946239504,-406.89068817,0.00019699,2]
[360708914,1746946239514,-400.0,0.00019699,2]
[360708915,1746946239524,-424.94856012,0.00019699,2]
[360708916,1746946239533,-400.0,0.00019699,2]
[360708917,1746946239548,-400.0,0.00019699,2]
[360708918,1746946239557,-400.0,0.00019699,2]
[360708919,1746946239567,-400.0,0.00019699,2]
[360708920,1746946239578,-400.0,0.00019699,2]
[360708921,1746946239588,-400.0,0.00019699,2]
[360708922,1746946239598,-400.0,0.00019699,2]
[360708923,1746946239608,-400.0,0.00019699,2]
[360708924,1746946239617,-400.0,0.00019699,2]
[360708925,1746946239627,-400.0,0.00019699,2]
[360708926,1746946239637,-400.0,0.00019699,2]
[360708927,1746946239647,-400.0,0.00019699,2]
[360708928,1746946239657,-400.0,0.00019699,2]
[360708929,1746946239666,-413.74,0.00019699,2]
[360708930,1746946239676,-400.0,0.00019699,2]
[360708931,1746946239686,-400.0,0.00019699,2]
[360708932,1746946239695,-627.15,0.00019699,2]
[360708933,1746946239705,-485.84,0.00019699,2]
[360708934,1746946239715,-400.0,0.00019699,2]
[360708936,1746946239725,-400.0,0.00019699,2]
[360708937,1746946239735,-400.0,0.00019699,2]
[360708938,1746946239744,-400.0,0.00019699,2]
[360708939,1746946239753,-404.24354569,0.00019699,2]
[360708940,1746946239763,-275.27947874,0.00019699,2]
[360708941,1746946239773,-400.0,0.00019699,2]
[360708942,1746946239783,-400.0,0.00019699,2]
[360708943,1746946239795,-400.0,0.00019699,2]
[360708944,1746946239804,-400.0,0.00019699,2]
[360708945,1746946239814,-400.0,0.00019699,2]
[360708946,1746946239823,-400.0,0.00019699,2]
[360708947,1746946239833,-400.0,0.00019699,2]
[360708948,1746946239843,-400.0,0.00019699,2]
[360708949,1746946240064,-400.0,0.00019699,2]
[360708950,1746946240073,-400.0,0.00019699,2]
[360708951,1746946240083,-400.0,0.00019699,2]
[360708952,1746946240095,-400.0,0.00019699,2]
[360708953,1746946240105,-400.0,0.00019699,2]
[360708954,1746946240115,-400.0,0.00019699,2]
[360708955,1746946240124,-400.0,0.00019699,2]
[360708956,1746946240135,-400.0,0.00019699,2]
[360708957,1746946240146,-406.47471695,0.00019699,2]
[360708958,1746946240155,-413.72,0.00019699,2]
[360708959,1746946240165,-400.0,0.00019699,2]
[360708960,1746946240174,-400.0,0.00019699,2]
[360708962,1746946240184,-400.0,0.00019699,2]
[360708963,1746946240193,-400.0,0.00019699,2]
[360708965,1746946240202,-409.98180195,0.00019699,2]
[360708967,1746946240211,-400.0,0.00019699,2]
[360708969,1746946240221,-400.0,0.00019699,2]
[360708971,1746946240230,-400.0,0.00019699,2]
[360708973,1746946240239,-400.0,0.00019699,2]
[360708975,1746946240249,-578.11,0.00019699,2]
[360708977,1746946240259,-400.0,0.00019699,2]
[360708979,1746946240268,-1613.373153,0.00019699,2]
[360708981,1746946240278,-400.0,0.00019699,2]
[360708983,1746946240290,-400.0,0.00019699,2]
[360708985,1746946240300,-400.0,0.00019699,2]
[360708987,1746946240309,-242.51287777,0.00019699,2]
[360708988,1746946240319,-400.0,0.00019699,2]
[360708989,1746946240328,-400.0,0.00019699,2]
[360708990,1746946240337,-400.0,0.00019699,2]
[360708991,1746946240346,-400.0,0.00019699,2]
[360708992,1746946240355,-500.0,0.00019699,2]
[360708993,1746946240364,-400.0,0.00019699,2]
[360708994,1746946240373,-500.0,0.00019699,2]
[360708995,1746946240383,-400.0,0.00019699,2]
[360708996,1746946240392,-1431.872564,0.00019699,2]
[360708997,1746946240401,-941.63,0.00019699,2]
[360708998,1746946240410,-400.0,0.00019699,2]
[360708999,1746946240419,-150.018361,0.00019699,2]
[360709000,1746946240428,-1000.0,0.00019699,2]
[360709001,1746946240438,-400.0,0.00019699,2]
[360709002,1746946240447,-400.0,0.00019699,2]
[360709003,1746946240456,-422.60572575,0.00019699,2]
[360709004,1746946240466,-4639.8395,0.000197,2]
[360709005,1746946240475,-9206.0,0.000197,2]
[360709006,1746946240484,-150.0,0.000197,2]
[360709007,1746946240494,-200.0,0.000197,7]
[360709008,1746946240503,-575.19236855,0.00019728,2]
[360709009,1746946240513,-150.0,0.00019732,2]
[360709010,1746946240522,-4752.48849991,0.00019732,2]
[360709011,1746946240532,-898.16274338,0.00019761,2]
[360709012,1746946240544,-575.19236855,0.00019762,2]
[360709013,1746946240554,-169.5712259,0.00019765,2]
[360709014,1746946240564,-4752.48849991,0.00019766,2]
[360709015,1746946240573,-196.72378652,0.00019795,2]
[360709016,1746946240582,-4685.5929,0.00019796,2]
[360709017,1746946240591,-575.19236855,0.00019797,2]
[360709018,1746946240601,-1000.0,0.00019797,2]
[360709019,1746946240611,-400.0,0.00019798,2]
[360709020,1746946240620,-401.44638209,0.00019798,2]
[360709021,1746946240630,-525.3812889,0.00019798,2]
[360709022,1746946240639,-400.0,0.00019798,2]
[360709023,1746946240649,-450.70064323,0.00019798,2]
[360709024,1746946240658,-400.0,0.00019798,2]
[360709025,1746946240668,-400.0,0.00019798,2]
[360709026,1746946240677,-451.10767954,0.00019798,2]
[360709027,1746946240686,-400.0,0.00019798,2]
[360709028,1746946240696,-385.57559194,0.00019798,2]
[360709029,1746946240706,-400.0,0.00019798,2]
[360709030,1746946240715,-400.0,0.00019798,2]
[360709031,1746946240725,-1294.67,0.00019798,2]
[360709032,1746946240735,-400.0,0.00019798,2]
[360709033,1746946240744,-400.0,0.00019798,2]
[360709034,1746946240754,-400.0,0.00019798,2]
[360709035,1746946240763,-400.0,0.00019798,2]
[360709036,1746946240773,-400.0,0.00019798,2]
[360709037,1746946240782,-167.379119,0.00019798,2]
[360709038,1746946240795,-400.0,0.00019798,2]
[360709039,1746946240804,-400.0,0.00019798,2]
[360709040,1746946240813,-608.28,0.00019798,2]
[360709041,1746946240823,-400.0,0.00019798,2]
[360709042,1746946240833,-400.0,0.00019798,2]
[360709043,1746946240843,-400.0,0.00019798,2]
[360709044,1746946240852,-400.0,0.00019798,2]
[360709045,1746946240861,-400.0,0.00019798,2]
[360709046,1746946240871,-400.0,0.00019798,2]
[360709047,1746946240880,-400.0,0.00019798,2]
[360709048,1746946240891,-400.0,0.00019798,2]
[360709049,1746946240901,-400.0,0.00019798,2]
[360709050,1746946240911,-928.33,0.00019798,2]
[360709051,1746946240920,-400.0,0.00019798,2]
[360709052,1746946240929,-400.0,0.00019798,2]
[360709053,1746946240940,-400.0,0.00019798,2]
[360709054,1746946240949,-400.0,0.00019798,2]
[360709055,1746946240959,-400.0,0.00019798,2]
[360709056,1746946240969,-400.0,0.00019798,2]
[360709057,1746946240978,-400.0,0.00019798,2]
[360709058,1746946240987,-207.73070745,0.00019798,2]
[360709059,1746946240996,-400.0,0.00019798,2]
[360709060,1746946241005,-400.0,0.00019798,2]
[360709061,1746946241014,-492.21,0.00019798,2]
[360709062,1746946241023,-400.0,0.00019798,2]
[360709063,1746946241032,-400.0,0.00019798,2]
[360709064,1746946241045,-400.0,0.00019798,2]
[360709065,1746946241054,-400.0,0.00019798,2]
[360709066,1746946241063,-400.0,0.00019798,2]
[360709067,1746946241071,-400.0,0.00019798,2]
[360709068,1746946241082,-400.0,0.00019798,2]
[360709069,1746946241093,-400.0,0.00019798,2]
[360709070,1746946241102,-400.0,0.00019798,2]
[360709071,1746946241111,-400.0,0.00019798,2]
[360709072,1746946241121,-400.0,0.00019798,2]
[360709073,1746946241130,-400.0,0.00019798,2]
[360709074,1746946241140,-400.0,0.00019798,2]
[360709075,1746946241149,-400.0,0.00019798,2]
[360709076,1746946241161,-400.0,0.00019798,2]
[360709077,1746946241170,-400.0,0.00019798,2]
[360709078,1746946241179,-2220.585,0.00019799,2]
[360709079,1746946241188,-400.0,0.00019799,2]
[360709080,1746946241197,-249.00526394,0.00019799,2]
[360709081,1746946241206,-484.11755892,0.00019799,2]
[360709082,1746946241215,-400.0,0.00019799,2]
[360709083,1746946241224,-13876.65,0.00019799,2]
[360709084,1746946241233,-414.12,0.00019799,2]
[360709085,1746946241242,-400.0,0.00019799,2]
[360709086,1746946241251,-400.0,0.00019799,2]
[360709087,1746946241260,-400.0,0.00019799,2]
[360709088,1746946241269,-400.0,0.00019799,2]
[360709089,1746946241278,-400.0,0.00019799,2]
[360709090,1746946241287,-400.0,0.00019799,2]
[360709091,1746946241297,-400.0,0.00019799,2]
[360709092,1746946241306,-400.0,0.00019799,2]
[360709093,1746946241316,-400.0,0.00019799,2]
[360709094,1746946241325,-1596.27,0.00019799,2]
[360709095,1746946241334,-1077.05,0.00019799,2]
[360709096,1746946241344,-960.29,0.00019799,2]
[360709097,1746946241353,-494.61,0.00019799,2]
[360709098,1746946241361,-1124.0,0.00019799,2]
[360709099,1746946241371,-400.0,0.00019799,2]
[360709100,1746946241381,-400.0,0.00019799,2]
[360709101,1746946241390,-4752.48849991,0.00019799,2]
[360709102,1746946241399,-44760.1364,0.00019799,2]
[360709103,1746946241409,-1000.0,0.000198,2]
[360709104,1746946241419,-800.0,0.000198,7]
[360709105,1746946241428,-200.0,0.00019813,2]
[360709106,1746946241437,-150.0,0.00019822,2]
[360709107,1746946241446,-575.19236855,0.00019831,2]
[360709108,1746946241456,-400.0,0.00019831,2]
[360709109,1746946241465,-169.5712259,0.00019833,2]
[360709110,1746946241475,-4752.48849991,0.00019833,2]
[360709111,1746946241484,-245.0,0.0001984,2]
[360709112,1746946241493,-211.0,0.0001984,2]
[360709113,1746946241503,-438.1743842,0.00019843,2]
[360709114,1746946241512,-400.0,0.00019847,2]
[360709115,1746946241521,-400.0,0.00019847,2]
[360709116,1746946241530,-400.0,0.00019847,2]
[360709117,1746946241540,-196.72378652,0.00019848,2]
[360709118,1746946241549,-928.0,0.00019848,2]
[360709119,1746946241558,-1313.965,0.00019848,2]
[360709120,1746946241567,-798.0,0.00019848,2]
[360709121,1746946241576,-631.704,0.00019848,2]
[360709122,1746946241585,-1246.0,0.00019848,2]
[360709123,1746946241595,-1454.0,0.00019848,2]
[360709124,1746946241604,-552.0,0.00019848,2]
[360709125,1746946241612,-917.0,0.00019848,2]
[360709126,1746946241622,-668.278,0.00019848,2]
[360709127,1746946241632,-4022.0,0.00019848,2]
[360709128,1746946241641,-6793.0,0.00019848,2]
[360709129,1746946241650,-155.201,0.00019848,2]
[360709130,1746946241659,-879.0,0.00019848,2]
[360709131,1746946241668,-150.0,0.00019852,2]
[360709132,1746946241677,-150.0,0.00019853,2]
[360709133,1746946241687,-575.19236855,0.00019866,2]
[360709134,1746946241696,-4752.48849991,0.00019866,2]
[360709135,1746946241705,-158.84038612,0.00019873,2]
[360709136,1746946241715,-503.98497366,0.00019873,2]
[360709137,1746946241724,-500.0,0.00019873,2]
[360709138,1746946241733,-500.0,0.00019873,2]
[360709139,1746946241743,-501.56544372,0.00019873,2]
[360709140,1746946241752,-500.0,0.00019873,2]
[360709141,1746946241761,-407.02260214,0.00019873,2]
[360709142,1746946241770,-547.56051546,0.00019873,2]
[360709143,1746946241780,-500.0,0.00019873,2]
[360709144,1746946241791,-501.14558692,0.00019873,2]
[360709145,1746946241800,-503.77165347,0.00019873,2]
[360709146,1746946241810,-500.0,0.00019873,2]
[360709147,1746946241819,-500.0,0.00019873,2]
[360709148,1746946241829,-500.0,0.00019873,2]
[360709149,1746946241838,-500.0,0.00019873,2]
[360709150,1746946241854,-500.0,0.00019873,2]
[360709151,1746946241863,-500.0,0.00019873,2]
[360709152,1746946241873,-500.87515149,0.00019873,2]
[360709153,1746946241882,-500.45933382,0.00019873,2]
[360709154,1746946241891,-188.05876706,0.00019873,2]
[360709155,1746946241901,-500.53240571,0.00019873,2]
[360709156,1746946241911,-500.0,0.00019873,2]
[360709157,1746946241920,-155.3508554,0.00019873,2]
[360709158,1746946241929,-150.0,0.00019876,2]
[360709159,1746946241938,-6646.53661056,0.0001988,2]
[360709160,1746946241948,-207.73070745,0.00019893,2]
[360709161,1746946241957,-1000.0,0.00019894,2]
[360709162,1746946241966,-400.0,0.00019894,2]
[360709163,1746946241976,-400.0,0.00019895,2]
[360709164,1746946241986,-400.0,0.00019895,2]
[360709165,1746946241995,-450.0,0.00019895,2]
[360709166,1746946242004,-400.0,0.00019895,2]
[360709167,1746946242014,-291.76966282,0.00019895,2]
[360709168,1746946242023,-369.02,0.00019895,2]
[360709169,1746946242033,-400.0,0.00019895,2]
[360709170,1746946242044,-205.69,0.00019895,2]
[360709171,1746946242054,-400.0,0.00019895,2]
[360709172,1746946242063,-400.0,0.00019895,2]
[360709173,1746946242072,-1294.67,0.00019895,2]
[360709174,1746946242085,-400.0,0.00019895,2]
[360709175,1746946242094,-266.84388526,0.00019895,2]
[360709176,1746946242103,-400.0,0.00019895,2]
[360709177,1746946242112,-400.0,0.00019895,2]
[360709178,1746946242122,-400.0,0.00019895,2]
[360709179,1746946242132,-400.0,0.00019895,2]
[360709180,1746946242141,-400.0,0.00019895,2]
[360709181,1746946242150,-400.0,0.00019895,2]
[360709182,1746946242159,-400.0,0.00019895,2]
[360709183,1746946242169,-400.0,0.00019895,2]
[360709184,1746946242179,-608.28,0.00019895,2]
[360709185,1746946242188,-400.0,0.00019895,2]
[360709186,1746946242198,-400.0,0.00019895,2]
[360709187,1746946242207,-400.0,0.00019895,2]
[360709188,1746946242216,-400.0,0.00019895,2]
[360709189,1746946242225,-400.0,0.00019895,2]
[360709190,1746946242235,-13876.65,0.00019895,2]
[360709191,1746946242244,-400.0,0.00019895,2]
[360709192,1746946242254,-400.0,0.00019895,2]
[360709193,1746946242263,-400.0,0.00019895,2]
[360709194,1746946242273,-400.0,0.00019895,2]
[360709195,1746946242282,-400.0,0.00019895,2]
[360709196,1746946242293,-400.0,0.00019895,2]
[360709197,1746946242302,-400.0,0.00019895,2]
[360709198,1746946242312,-400.0,0.00019895,2]
[360709200,1746946242321,-400.0,0.00019895,2]
[360709201,1746946242330,-400.0,0.00019895,2]
[360709202,1746946242340,-400.0,0.00019895,2]
[360709203,1746946242350,-151.09230311,0.00019895,2]
[360709204,1746946242359,-400.0,0.00019895,2]
[360709205,1746946242368,-400.0,0.00019895,2]
[360709206,1746946242377,-400.0,0.00019895,2]
[360709207,1746946242387,-400.0,0.00019895,2]
[360709208,1746946242395,-400.0,0.00019895,2]
[360709209,1746946242405,-400.0,0.00019895,2]
[360709210,1746946242414,-400.0,0.00019895,2]
[360709211,1746946242424,-400.0,0.00019895,2]
[360709212,1746946242433,-400.0,0.00019895,2]
[360709213,1746946242443,-500.0,0.00019895,2]
[360709214,1746946242452,-928.33,0.00019895,2]
[360709215,1746946242461,-400.0,0.00019895,2]
[360709216,1746946242470,-400.0,0.00019895,2]
[360709217,1746946242480,-400.0,0.00019895,2]
[360709218,1746946242489,-400.0,0.00019895,2]
[360709219,1746946242499,-400.0,0.00019895,2]
[360709221,1746946242508,-400.0,0.00019895,2]
[360709224,1746946242517,-400.0,0.00019895,2]
[360709228,1746946242526,-400.0,0.00019895,2]
[360709231,1746946242535,-444.33,0.00019895,2]
[360709234,1746946242546,-400.0,0.00019895,2]
[360709236,1746946242556,-444.33,0.00019895,2]
[360709238,1746946242565,-400.0,0.00019895,2]
[360709240,1746946242575,-400.0,0.00019895,2]
[360709242,1746946242584,-400.0,0.00019895,2]
[360709244,1746946242593,-417.81542462,0.00019895,2]
[360709246,1746946242603,-400.0,0.00019895,2]
[360709248,1746946242612,-644.09,0.00019895,2]
[360709249,1746946242621,-644.09,0.00019895,2]
[360709250,1746946242630,-400.0,0.00019895,2]
[360709251,1746946242639,-400.0,0.00019895,2]
[360709252,1746946242648,-400.0,0.00019895,2]
[360709253,1746946242657,-400.0,0.00019895,2]
[360709254,1746946242667,-400.0,0.00019895,2]
[360709255,1746946242676,-400.0,0.00019895,2]
[360709256,1746946242686,-400.0,0.00019895,2]
[360709257,1746946242696,-400.0,0.00019895,2]
[360709258,1746946242705,-400.0,0.00019895,2]
[360709259,1746946242714,-400.0,0.00019895,2]
[360709260,1746946242723,-400.0,0.00019895,2]
[360709261,1746946242733,-400.0,0.00019895,2]
[360709262,1746946242742,-400.0,0.00019895,2]
[360709263,1746946242751,-400.0,0.00019895,2]
[360709264,1746946242761,-400.0,0.00019895,2]
[360709265,1746946242770,-400.0,0.00019895,2]
[360709266,1746946242779,-506.62,0.00019895,2]
[360709267,1746946242789,-506.62,0.00019895,2]
[360709268,1746946242799,-400.0,0.00019895,2]
[360709269,1746946242809,-682.59,0.00019895,2]
[360709270,1746946242818,-682.59,0.00019895,2]
[360709271,1746946242827,-400.0,0.00019895,2]
[360709272,1746946242837,-400.0,0.00019895,2]
[360709273,1746946242846,-400.0,0.00019895,2]
[360709274,1746946242855,-402.47121411,0.00019895,2]
[360709275,1746946242864,-400.0,0.00019895,2]
[360709277,1746946243044,-1596.27,0.00019895,2]
[360709279,1746946243054,-400.0,0.00019895,2]
[360709281,1746946243063,-400.0,0.00019895,2]
[360709283,1746946243074,-400.0,0.00019895,2]
[360709285,1746946243085,-409.55,0.00019895,2]
[360709287,1746946243094,-400.0,0.00019895,2]